[Event "European Womens-ch 2025"]
[Site "Rhodes"]
[Date "2025.04.07"]
[Round "7.45"]
[White "Huseynova, Lala"]
[Black "Schloffer, Jasmin-Denise"]
[Result "0-1"]
[Annotator "ChessBase"]
[ECO "B15"]
[WhiteElo "2065"]
[BlackElo "2188"]
[PlyCount "116"]
[EventDate "2025.03.29"]
[EventType "swiss"]
[EventCountry "GRE"]
[SourceTitle "playchess.com"]
[Source "ChessBase"]
[SourceQuality "1"]
[TimeControl "40/5400+30:1800+30"]

1. e4 {[%emt 0:00:01]} c6 {[%emt 0:00:05]} 2. d4 {[%emt 0:00:05]} d5 {[%emt 0:00:05]} 3. Nc3 {[%emt 0:00:06]} dxe4 {[%emt 0:00:05]} 4. Nxe4 {[%emt 0:00:03]} Nf6 {[%emt 0:00:07]} 5. Nxf6+ {[%emt 0:00:05]} exf6 {[%emt 0:00:06]} 6. Be3 {[%emt 0:00:04]} Na6 {[%emt 0:00:05]} 7. a3 {[%emt 0:01:23]} Bf5 {[%emt 0:00:33]} 8. Bd3 {[%emt 0:03:32]} Bd6 {[%emt 0:01:39]} 9. Ne2 {[%emt 0:01:31]} O-O {[%emt 0:00:53]} 10. O-O {[%emt 0:00:56]} Bg6 {[%emt 0:00:28]} 11. c4 {[%emt 0:01:59]} Re8 {[%emt 0:06:45]} 12. Ng3 {[%emt 0:05:35]} Qd7 {[%emt 0:03:25]} 13. Qc2 {[%emt 0:04:48]} Rad8 {[%emt 0:09:16]} 14. Rad1 {[%emt 0:02:51]} Bb8 {[%emt 0:03:24]} 15. Rfe1 {[%emt 0:10:32]} Nc7 {[%emt 0:06:37]} 16. Bf5 {[%emt 0:22:40]} Qd6 {[%emt 0:09:15]} 17. Bxg6 {[%emt 0:04:59]} hxg6 {[%emt 0:01:11]} 18. Ne4 {[%emt 0:00:11]} Qd7 {[%emt 0:03:53]} 19. Bf4 {[%emt 0:04:20]} f5 {[%emt 0:08:45]} 20. Nc5 {[%emt 0:03:11]} Rxe1+ {[%emt 0:02:15]} 21. Rxe1 {[%emt 0:00:01]} Qxd4 {[%emt 0:00:29]} 22. Nxb7 {[%emt 0:02:04]} Rd7 {[%emt 0:08:33]} 23. Be3 {[%emt 0:13:49]} Qh4 {[%emt 0:08:41]} 24. g3 {[%emt 0:03:18]} Qf6 {[%emt 0:03:25]} 25. Nc5 {[%emt 0:01:34]} Rd8 {[%emt 0:02:53]} 26. Qc1 {[%emt 0:01:03]} Re8 {[%emt 0:01:12]} 27. Nd7 {[%emt 0:00:39]} Qd8 {[%emt 0:00:54]} 28. Rd1 {[%emt 0:02:56]} Ne6 {[%emt 0:01:55]} 29. Nxb8 {[%emt 0:02:27]} Qxb8 {[%emt 0:00:04]} 30. Rd7 {[%emt 0:00:12]} c5 {[%emt 0:01:49]} 31. Qd2 {[%emt 0:01:15]} Rc8 {[%emt 0:03:04]} 32. f4 {[%emt 0:04:37]} a5 {[%emt 0:05:43]} 33. Qc3 {[%emt 0:01:16]} a4 {[%emt 0:02:46]} 34. Rd5 {[%emt 0:02:09]} Qb6 {[%emt 0:01:09]} 35. Rd2 {[%emt 0:01:04]} Rd8 {[%emt 0:03:04]} 36. Rxd8+ {[%emt 0:00:39]} Qxd8 {[%emt 0:00:06]} 37. Qc2 {[%emt 0:00:06]} Qa5 {[%emt 0:00:38]} 38. Kf2 {[%emt 0:00:35]} Qa8 {[%emt 0:00:37]} 39. Qd1 {[%emt 0:00:50]} Qb7 {[%emt 0:01:22]} 40. Qxa4 {[%emt 0:00:00]} Qxb2+ {[%emt 0:00:00]} 41. Kg1 {[%emt 0:10:35]} Kh7 {[%emt 0:08:20]} 42. Qa7 {[%emt 0:08:31]} Qb1+ {[%emt 0:03:02]} 43. Kg2 {[%emt 0:00:18]} Qe4+ {[%emt 0:01:42]} 44. Kf2 {[%emt 0:00:10]} Qc2+ {[%emt 0:03:37]} 45. Kg1 {[%emt 0:01:11]} Qb1+ {[%emt 0:04:21]} 46. Kf2 {[%emt 0:01:36]} Qc2+ {[%emt 0:01:28]} 47. Kg1 {[%emt 0:02:23]} Qxc4 {[%emt 0:00:18]} 48. a4 {[%emt 0:01:51]} Nd4 {[%emt 0:02:04]} 49. a5 {[%emt 0:00:14]} Qd3 {[%emt 0:02:49]} 50. Bxd4 {[%emt 0:03:35]} cxd4 {[%emt 0:00:07]} 51. a6 {[%emt 0:00:31]} Qd1+ {[%emt 0:00:20]} 52. Kg2 {[%emt 0:00:27]} Qe2+ {[%emt 0:01:36]} 53. Kg1 {[%emt 0:00:56]} Qe1+ {[%emt 0:01:34]} 54. Kg2 {[%emt 0:00:01]} d3 {[%emt 0:01:10]} 55. Qd4 {[%emt 0:01:55]} d2 {[%emt 0:01:13]} 56. a7 {[%emt 0:00:03]} Qe2+ {[%emt 0:00:26]} 57. Kh3 {[%emt 0:01:58]} Qf1+ {[%emt 0:00:09]} 58. Kh4 {[%emt 0:00:01]} d1=Q {[%emt 0:00:09]} 0-1

[Event "European Womens-ch 2025"]
[Site "Rhodes"]
[Date "2025.04.07"]
[Round "7.46"]
[White "Piddubna, Bozhena"]
[Black "Mihaljevic, Eva"]
[Result "1-0"]
[Annotator "NA RC"]
[ECO "E06"]
[WhiteElo "2145"]
[BlackElo "2039"]
[PlyCount "49"]
[EventDate "2025.03.29"]
[EventType "swiss"]
[EventCountry "GRE"]
[SourceTitle "playchess.com"]
[Source "ChessBase"]
[SourceQuality "1"]
[TimeControl "40/5400+30:1800+30"]

1. d4 {[%emt 0:00:11]} d5 {[%emt 0:00:06]} 2. c4 {[%emt 0:00:05]} e6 {[%emt 0:00:06]} 3. Nf3 {[%emt 0:00:31]} Nf6 {[%emt 0:00:09]} 4. g3 {[%emt 0:00:04]} Be7 {[%emt 0:00:07]} 5. Bg2 {[%emt 0:00:06]} O-O {[%emt 0:00:08]} 6. O-O {[%emt 0:00:05]} a5 {[%emt 0:00:05]} 7. Qc2 {[%emt 0:04:30]} c6 {[%emt 0:00:13]} 8. Nbd2 {[%emt 0:01:55]} b6 {[%emt 0:03:46]} 9. Rd1 {[%emt 0:09:44]} Bb7 {[%emt 0:04:48]} 10. Ne5 {[%emt 0:03:09]} Nfd7 {[%emt 0:04:02]} 11. Ndf3 {[%emt 0:03:40]} Qc8 {[%emt 0:04:13]} 12. Ng5 {[%emt 0:13:07]} Bxg5 {[%emt 0:26:00]} 13. Bxg5 {[%emt 0:01:22]} Nxe5 {[%emt 0:06:23]} 14. dxe5 {[%emt 0:00:19]} Qc7 {[%emt 0:01:22]} 15. cxd5 {[%emt 0:02:08]} exd5 {[%emt 0:02:20]} 16. Bxd5 {[%emt 0:09:39]} Qxe5 {[%emt 0:02:05]} 17. Bf4 {[%emt 0:00:31]} Qf6 {[%emt 0:05:03]} 18. Be4 {[%emt 0:01:09]} g6 {[%emt 0:03:28]} 19. Rd6 {[%emt 0:07:54]} Qe7 {[%emt 0:02:46]} 20. Rad1 {[%emt 0:00:33]} f5 {[%emt 0:06:00]} 21. Bh6 {[%emt 0:08:45]} Re8 {[%emt 0:06:54]} 22. Qb3+ {[%emt 0:11:03]} Qf7 {[%emt 0:04:04]} 23. Bc2 {[%emt 0:04:33]} Qxb3 {[%emt 0:07:51]} 24. Bxb3+ {[%emt 0:00:07]} Kh8 {[%emt 0:00:06]} 25. Rd8 {[%emt 0:00:39]} 1-0

[Event "European Womens-ch 2025"]
[Site "Rhodes"]
[Date "2025.04.07"]
[Round "7.47"]
[White "Golsta, Ramona"]
[Black "Dicen, Elis Denele"]
[Result "0-1"]
[Annotator "RC"]
[ECO "D38"]
[WhiteElo "1943"]
[BlackElo "2129"]
[PlyCount "104"]
[EventDate "2025.03.29"]
[EventType "swiss"]
[EventCountry "GRE"]
[SourceTitle "playchess.com"]
[Source "ChessBase"]
[SourceQuality "1"]
[TimeControl "40/5400+30:1800+30"]

1. d4 {[%emt 0:00:01]} d5 {[%emt 0:00:07]} 2. c4 {[%emt 0:00:08]} e6 {[%emt 0:00:06]} 3. Nf3 {[%emt 0:00:06]} Nf6 {[%emt 0:00:07]} 4. Nc3 {[%emt 0:00:05]} Nbd7 {[%emt 0:00:07]} 5. Bg5 {[%emt 0:00:16]} Bb4 {[%emt 0:00:19]} 6. e3 {[%emt 0:00:40]} c5 {[%emt 0:00:56]} 7. Bxf6 {[%emt 0:09:24]} Nxf6 {[%emt 0:04:44]} 8. Bd3 {[%emt 0:03:16]} Qa5 {[%emt 0:06:28]} 9. Qc2 {[%emt 0:05:28]} b5 {[%emt 0:14:36]} 10. cxb5 {[%emt 0:14:00]} c4 {[%emt 0:00:32]} 11. Be2 {[%emt 0:00:33]} Ne4 {[%emt 0:04:06]} 12. Rc1 {[%emt 0:10:48]} Qxa2 {[%emt 0:05:43]} 13. Nd2 {[%emt 0:05:11]} Bxc3 {[%emt 0:03:22]} 14. bxc3 {[%emt 0:00:25]} Qxc2 {[%emt 0:00:32]} 15. Rxc2 {[%emt 0:00:06]} Nd6 {[%emt 0:00:14]} 16. e4 {[%emt 0:05:44]} O-O {[%emt 0:08:57]} 17. Bf3 {[%emt 0:04:11]} Bb7 {[%emt 0:03:38]} 18. exd5 {[%emt 0:12:54]} Bxd5 {[%emt 0:06:49]} 19. O-O {[%emt 0:01:53]} Nxb5 {[%emt 0:02:23]} 20. Ra1 {[%emt 0:02:50]} Rfc8 {[%emt 0:04:49]} 21. Ra4 {[%emt 0:01:36]} Rab8 {[%emt 0:08:27]} 22. Be2 {[%emt 0:00:31]} Nxd4 {[%emt 0:08:31]} 23. cxd4 {[%emt 0:02:21]} c3 {[%emt 0:00:09]} 24. h3 {[%emt 0:06:10]} cxd2 {[%emt 0:01:10]} 25. Rxd2 {[%emt 0:00:05]} Rc7 {[%emt 0:00:39]} 26. Rd3 {[%emt 0:02:19]} Rb1+ {[%emt 0:02:26]} 27. Kh2 {[%emt 0:01:35]} Rb2 {[%emt 0:00:34]} 28. Re3 {[%emt 0:01:30]} g6 {[%emt 0:01:11]} 29. Kg3 {[%emt 0:05:25]} Rcc2 {[%emt 0:01:30]} 30. Bf3 {[%emt 0:00:15]} Rxf2 {[%emt 0:02:00]} 31. Rxa7 {[%emt 0:00:22]} Bxf3 {[%emt 0:01:40]} 32. gxf3 {[%emt 0:00:26]} Rfd2 {[%emt 0:00:42]} 33. Rc3 {[%emt 0:01:22]} Rb5 {[%emt 0:00:49]} 34. Rd7 {[%emt 0:01:29]} Rf5 {[%emt 0:01:22]} 35. Re3 {[%emt 0:01:40]} Rd5 {[%emt 0:03:20]} 36. Rxd5 {[%emt 0:00:06]} exd5 {[%emt 0:00:05]} 37. Kf4 {[%emt 0:00:10]} f6 {[%emt 0:00:29]} 38. Re8+ {[%emt 0:02:13]} Kf7 {[%emt 0:00:30]} 39. Rh8 {[%emt 0:00:06]} Rxd4+ {[%emt 0:00:22]} 40. Kg3 {[%emt 0:00:00]} Kg7 {[%emt 0:00:00]} 41. Rd8 {[%emt 0:01:26]} Rd1 {[%emt 0:01:10]} 42. Kf2 {[%emt 0:00:22]} g5 {[%emt 0:00:51]} 43. h4 {[%emt 0:01:12]} gxh4 {[%emt 0:01:36]} 44. Re8 {[%emt 0:04:28]} Rd2+ {[%emt 0:01:06]} 45. Ke3 {[%emt 0:01:05]} Rg2 {[%emt 0:00:37]} 46. f4 {[%emt 0:05:39]} Rg3+ {[%emt 0:00:59]} 47. Kf2 {[%emt 0:03:11]} d4 {[%emt 0:01:18]} 48. f5 {[%emt 0:02:16]} Rg5 {[%emt 0:00:26]} 49. Re7+ {[%emt 0:01:54]} Kh6 {[%emt 0:00:23]} 50. Re4 {[%emt 0:00:07]} Rxf5+ {[%emt 0:00:06]} 51. Kg2 {[%emt 0:00:28]} Rd5 {[%emt 0:00:32]} 52. Rxh4+ {[%emt 0:00:07]} Kg6 {[%emt 0:00:07]} 0-1

[Event "European Womens-ch 2025"]
[Site "Rhodes"]
[Date "2025.04.07"]
[Round "7.48"]
[White "Nadzamova, Viktoria"]
[Black "Bhatia, Kanishka"]
[Result "1-0"]
[Annotator "NA RC"]
[ECO "D35"]
[WhiteElo "2122"]
[BlackElo "2012"]
[PlyCount "95"]
[EventDate "2025.03.29"]
[EventType "swiss"]
[EventCountry "GRE"]
[SourceTitle "playchess.com"]
[Source "ChessBase"]
[SourceQuality "1"]
[TimeControl "40/5400+30:1800+30"]

1. d4 {[%emt 0:00:04]} Nf6 {[%emt 0:00:08]} 2. c4 {[%emt 0:00:21]} e6 {[%emt 0:00:06]} 3. Nc3 {[%emt 0:00:51]} d5 {[%emt 0:00:20]} 4. cxd5 exd5 {[%emt 0:00:10]} 5. Bg5 {[%emt 0:00:56]} c6 {[%emt 0:00:37]} 6. e3 {[%emt 0:00:50]} Bd6 {[%emt 0:00:25]} 7. Bd3 {[%emt 0:01:00]} h6 {[%emt 0:01:30]} 8. Bh4 {[%emt 0:02:41]} Nbd7 {[%emt 0:01:00]} 9. Nge2 {[%emt 0:02:51]} O-O {[%emt 0:02:55]} 10. Bg3 {[%emt 0:04:12]} Qe7 {[%emt 0:00:53]} 11. O-O {[%emt 0:01:53]} Re8 {[%emt 0:01:48]} 12. Qc2 {[%emt 0:07:19]} Bxg3 {[%emt 0:03:06]} 13. Nxg3 {[%emt 0:00:56]} g6 {[%emt 0:00:28]} 14. Rae1 {[%emt 0:02:41]} Nf8 {[%emt 0:03:31]} 15. e4 {[%emt 0:14:34]} Qb4 {[%emt 0:04:31]} 16. e5 {[%emt 0:05:41]} N6h7 {[%emt 0:00:29]} 17. Nce2 {[%emt 0:02:24]} h5 {[%emt 0:02:17]} 18. a3 {[%emt 0:04:31]} Qb6 {[%emt 0:00:29]} 19. f4 {[%emt 0:05:47]} h4 {[%emt 0:00:54]} 20. f5 {[%emt 0:03:28]} hxg3 21. fxg6 gxh2+ {[%emt 0:02:01]} 22. Kh1 {[%emt 0:01:57]} fxg6 {[%emt 0:02:46]} 23. Bxg6 {[%emt 0:00:09]} Be6 {[%emt 0:06:11]} 24. Bxe8 {[%emt 0:00:50]} Rxe8 {[%emt 0:00:14]} 25. Qc3 {[%emt 0:00:18]} Re7 {[%emt 0:02:57]} 26. Nf4 {[%emt 0:01:08]} Bg4 {[%emt 0:02:51]} 27. Rf2 {[%emt 0:12:42]} Ne6 {[%emt 0:07:29]} 28. Nxe6 {[%emt 0:00:59]} Bxe6 {[%emt 0:00:22]} 29. Qe3 {[%emt 0:01:00]} Rg7 {[%emt 0:04:01]} 30. Qh6 {[%emt 0:03:25]} Ng5 {[%emt 0:04:49]} 31. Ref1 {[%emt 0:01:40]} Qd8 {[%emt 0:02:23]} 32. Rf6 {[%emt 0:04:49]} Qe7 {[%emt 0:07:47]} 33. R1f4 {[%emt 0:01:39]} Bf7 {[%emt 0:01:26]} 34. Rg4 {[%emt 0:02:47]} Ne6 {[%emt 0:03:36]} 35. Rxe6 {[%emt 0:02:46]} Bxe6 {[%emt 0:00:24]} 36. Rxg7+ {[%emt 0:00:06]} Qxg7 {[%emt 0:00:06]} 37. Qxe6+ {[%emt 0:00:05]} Kh7 {[%emt 0:05:22]} 38. Kxh2 {[%emt 0:10:10]} Qf8 {[%emt 0:03:03]} 39. Qh3+ {[%emt 0:00:00]} Kg6 {[%emt 0:00:29]} 40. Qg4+ {[%emt 0:00:00]} Kh6 {[%emt 0:00:00]} 41. Kg3 {[%emt 0:00:00]} Qe8 {[%emt 0:02:36]} 42. Qf4+ {[%emt 0:00:00]} Kg6 {[%emt 0:01:52]} 43. Qf6+ {[%emt 0:00:00]} Kh7 {[%emt 0:01:27]} 44. Kf4 {[%emt 0:00:00]} c5 {[%emt 0:00:39]} 45. dxc5 {[%emt 0:00:00]} Qa4+ {[%emt 0:00:25]} 46. Kg5 {[%emt 0:00:00]} Qb3 {[%emt 0:01:07]} 47. Qg6+ {[%emt 0:00:00]} Kh8 {[%emt 0:00:06]} 48. Kf6 {[%emt 0:00:00]} 1-0

[Event "European Womens-ch 2025"]
[Site "Rhodes"]
[Date "2025.04.07"]
[Round "7.49"]
[White "Zagorac, Lara"]
[Black "Chasouraki, Chrysi"]
[Result "1-0"]
[Annotator "RC"]
[ECO "E06"]
[WhiteElo "2106"]
[BlackElo "1843"]
[PlyCount "153"]
[EventDate "2025.03.29"]
[EventType "swiss"]
[EventCountry "GRE"]
[SourceTitle "playchess.com"]
[Source "ChessBase"]
[SourceQuality "1"]
[TimeControl "40/5400+30:1800+30"]

1. d4 {[%emt 0:00:01]} Nf6 {[%emt 0:00:11]} 2. c4 {[%emt 0:00:08]} e6 {[%emt 0:00:08]} 3. g3 {[%emt 0:00:09]} d5 {[%emt 0:00:08]} 4. Nf3 {[%emt 0:00:10]} Be7 {[%emt 0:00:07]} 5. Bg2 {[%emt 0:00:09]} O-O {[%emt 0:00:07]} 6. O-O {[%emt 0:00:14]} a5 {[%emt 0:00:11]} 7. Qc2 {[%emt 0:02:17]} c6 {[%emt 0:00:06]} 8. Rd1 {[%emt 0:02:34]} b6 {[%emt 0:05:28]} 9. Nbd2 {[%emt 0:06:06]} Bb7 {[%emt 0:01:52]} 10. e4 {[%emt 0:03:50]} Qc8 {[%emt 0:03:14]} 11. e5 {[%emt 0:10:56]} Nfd7 {[%emt 0:02:40]} 12. Nf1 {[%emt 0:05:21]} Na6 {[%emt 0:08:02]} 13. Bg5 {[%emt 0:05:46]} Qd8 {[%emt 0:08:41]} 14. h4 {[%emt 0:02:48]} Nb4 {[%emt 0:03:38]} 15. Qc1 {[%emt 0:09:41]} dxc4 {[%emt 0:05:39]} 16. Qxc4 {[%emt 0:04:30]} Nd5 {[%emt 0:16:11]} 17. Qc2 {[%emt 0:05:12]} Rc8 {[%emt 0:09:17]} 18. Qe4 {[%emt 0:02:53]} c5 {[%emt 0:05:39]} 19. Qg4 {[%emt 0:01:45]} Bxg5 {[%emt 0:09:04]} 20. Nxg5 {[%emt 0:01:41]} Qe8 {[%emt 0:02:15]} 21. Qe4 {[%emt 0:06:47]} g6 {[%emt 0:02:40]} 22. Qg4 {[%emt 0:04:30]} cxd4 {[%emt 0:06:55]} 23. Qxd4 {[%emt 0:01:22]} Qe7 {[%emt 0:06:21]} 24. Ne3 {[%emt 0:08:07]} Nxe3 {[%emt 0:01:14]} 25. Bxb7 {[%emt 0:01:40]} Rc7 {[%emt 0:01:31]} 26. Qxe3 {[%emt 0:01:35]} Rxb7 {[%emt 0:00:13]} 27. Rac1 {[%emt 0:06:57]} Nc5 {[%emt 0:01:31]} 28. a3 {[%emt 0:02:19]} a4 {[%emt 0:00:29]} 29. h5 {[%emt 0:01:44]} h6 {[%emt 0:00:51]} 30. Ne4 {[%emt 0:01:32]} Kg7 {[%emt 0:00:34]} 31. Nf6 {[%emt 0:00:52]} Rd8 {[%emt 0:00:24]} 32. Ng4 {[%emt 0:00:47]} Rxd1+ {[%emt 0:00:29]} 33. Rxd1 {[%emt 0:00:06]} g5 {[%emt 0:00:36]} 34. Nf6 {[%emt 0:00:19]} Nd7 {[%emt 0:00:23]} 35. Rxd7 {[%emt 0:01:01]} Rxd7 {[%emt 0:00:02]} 36. Qe4 {[%emt 0:01:44]} Rd1+ {[%emt 0:00:11]} 37. Kh2 {[%emt 0:00:17]} Qd8 {[%emt 0:00:59]} 38. Qh7+ {[%emt 0:00:23]} Kf8 {[%emt 0:00:02]} 39. Qxh6+ {[%emt 0:00:57]} Ke7 {[%emt 0:00:04]} 40. Qxg5 {[%emt 0:00:00]} Qd4 {[%emt 0:00:00]} 41. Nd5+ {[%emt 0:07:06]} Kd7 {[%emt 0:08:25]} 42. Qe7+ {[%emt 0:05:15]} Kc6 {[%emt 0:00:10]} 43. Qd6+ {[%emt 0:00:19]} Kb7 {[%emt 0:01:17]} 44. Qd7+ {[%emt 0:06:03]} Ka8 {[%emt 0:03:51]} 45. Qc8+ {[%emt 0:14:22]} Ka7 {[%emt 0:00:17]} 46. Qc7+ {[%emt 0:00:26]} Ka6 {[%emt 0:00:25]} 47. Nb4+ {[%emt 0:00:16]} Kb5 {[%emt 0:00:37]} 48. Qc6+ {[%emt 0:00:01]} Ka5 {[%emt 0:00:24]} 49. Qa8+ {[%emt 0:00:02]} Kb5 {[%emt 0:00:14]} 50. Qc6+ {[%emt 0:01:32]} Ka5 {[%emt 0:00:09]} 51. Qa8+ {[%emt 0:00:39]} Kb5 {[%emt 0:02:49]} 52. Qa6+ {[%emt 0:00:00]} Kc5 {[%emt 0:00:35]} 53. Qc8+ {[%emt 0:00:02]} Kb5 {[%emt 0:00:11]} 54. Qa6+ {[%emt 0:00:08]} Kc5 {[%emt 0:00:07]} 55. Qc8+ {[%emt 0:00:01]} Kb5 {[%emt 0:00:06]} 56. Qe8+ {[%emt 0:01:28]} Qd7 {[%emt 0:05:17]} 57. Qa8 {[%emt 0:00:21]} Qd4 {[%emt 0:00:50]} 58. Qf3 {[%emt 0:01:22]} Rd2 {[%emt 0:02:55]} 59. Kg2 {[%emt 0:00:45]} Rxb2 {[%emt 0:01:51]} 60. Qc6+ {[%emt 0:00:16]} Ka5 {[%emt 0:00:16]} 61. Qa8+ {[%emt 0:00:04]} Kb5 {[%emt 0:00:39]} 62. Qa6+ {[%emt 0:00:21]} Kc5 {[%emt 0:00:20]} 63. Nd3+ {[%emt 0:01:14]} Kd5 {[%emt 0:02:29]} 64. Qa8+ {[%emt 0:00:11]} Kc4 {[%emt 0:00:45]} 65. Nxb2+ {[%emt 0:00:17]} Qxb2 {[%emt 0:00:37]} 66. Qxa4+ {[%emt 0:00:02]} Kd5 {[%emt 0:03:00]} 67. Qa8+ {[%emt 0:00:08]} Kxe5 {[%emt 0:00:47]} 68. h6 {[%emt 0:00:40]} Qc2 {[%emt 0:01:02]} 69. Qb8+ {[%emt 0:00:41]} Kf6 {[%emt 0:01:58]} 70. Qxb6 {[%emt 0:01:11]} Qe4+ {[%emt 0:00:22]} 71. Kh2 {[%emt 0:00:22]} Qd5 {[%emt 0:01:54]} 72. Qe3 {[%emt 0:00:14]} Qh5+ {[%emt 0:01:40]} 73. Kg2 {[%emt 0:00:03]} Ke7 {[%emt 0:00:27]} 74. Qf4 {[%emt 0:00:17]} Kf8 {[%emt 0:00:42]} 75. Qf6 {[%emt 0:00:51]} Qd5+ {[%emt 0:00:20]} 76. Kh2 {[%emt 0:00:15]} Qh5+ {[%emt 0:00:19]} 77. Qh4 {[%emt 0:00:11]} 1-0

[Event "European Womens-ch 2025"]
[Site "Rhodes"]
[Date "2025.04.07"]
[Round "7.50"]
[White "Kosma, Maria"]
[Black "Ter-Avetisjana, Agnesa Stepania"]
[Result "0-1"]
[Annotator "RC"]
[ECO "B11"]
[WhiteElo "1826"]
[BlackElo "2100"]
[PlyCount "100"]
[EventDate "2025.03.29"]
[EventType "swiss"]
[EventCountry "GRE"]
[SourceTitle "playchess.com"]
[Source "ChessBase"]
[SourceQuality "1"]
[TimeControl "40/5400+30:1800+30"]

1. e4 {[%emt 0:00:04]} c6 {[%emt 0:00:04]} 2. Nc3 {[%emt 0:00:13]} d5 {[%emt 0:00:07]} 3. Nf3 {[%emt 0:00:06]} Bg4 {[%emt 0:00:04]} 4. d4 {[%emt 0:00:05]} e6 {[%emt 0:01:05]} 5. Be2 {[%emt 0:00:10]} Nf6 {[%emt 0:02:12]} 6. e5 {[%emt 0:00:06]} Nfd7 {[%emt 0:00:05]} 7. O-O {[%emt 0:00:07]} Be7 {[%emt 0:00:12]} 8. Ne1 {[%emt 0:00:35]} Bxe2 {[%emt 0:01:26]} 9. Nxe2 {[%emt 0:00:56]} h5 {[%emt 0:02:58]} 10. f4 {[%emt 0:13:51]} g6 {[%emt 0:00:54]} 11. Nd3 {[%emt 0:07:12]} c5 {[%emt 0:05:06]} 12. c3 {[%emt 0:00:16]} Nc6 {[%emt 0:00:49]} 13. Be3 {[%emt 0:01:53]} cxd4 {[%emt 0:09:52]} 14. Nxd4 {[%emt 0:08:53]} Rc8 {[%emt 0:08:38]} 15. g4 {[%emt 0:06:57]} hxg4 {[%emt 0:08:03]} 16. Qxg4 {[%emt 0:00:44]} Nxd4 {[%emt 0:00:20]} 17. cxd4 {[%emt 0:10:32]} Nb6 {[%emt 0:05:43]} 18. Rac1 {[%emt 0:02:14]} Nc4 {[%emt 0:06:51]} 19. Bf2 {[%emt 0:00:42]} Rc6 {[%emt 0:06:58]} 20. Qe2 {[%emt 0:07:28]} Qa5 {[%emt 0:07:20]} 21. b3 {[%emt 0:08:47]} Qd2 {[%emt 0:05:54]} 22. Qf3 {[%emt 0:05:37]} Na3 {[%emt 0:06:59]} 23. Rxc6 {[%emt 0:08:36]} bxc6 {[%emt 0:00:08]} 24. Nc1 {[%emt 0:00:18]} Nb5 {[%emt 0:05:26]} 25. Qe3 {[%emt 0:03:07]} Qxe3 {[%emt 0:05:32]} 26. Bxe3 {[%emt 0:00:06]} Rh3 {[%emt 0:00:18]} 27. Bf2 {[%emt 0:02:05]} Ba3 {[%emt 0:00:11]} 28. Ne2 {[%emt 0:08:16]} Rd3 {[%emt 0:00:09]} 29. Ra1 {[%emt 0:02:39]} Bb2 {[%emt 0:06:25]} 30. Rb1 {[%emt 0:00:18]} Bxd4 {[%emt 0:02:47]} 31. a4 {[%emt 0:00:05]} Bxf2+ {[%emt 0:01:40]} 32. Kxf2 {[%emt 0:00:07]} Nd4 {[%emt 0:01:04]} 33. Nxd4 {[%emt 0:01:42]} Rxd4 {[%emt 0:00:01]} 34. Kg3 {[%emt 0:00:55]} Rb4 {[%emt 0:01:25]} 35. Kg4 {[%emt 0:00:54]} Kd7 {[%emt 0:00:39]} 36. Kg5 {[%emt 0:00:31]} a5 {[%emt 0:00:28]} 37. Rc1 {[%emt 0:00:46]} Kc7 {[%emt 0:00:34]} 38. Rc3 {[%emt 0:00:33]} Re4 {[%emt 0:00:31]} 39. Rf3 {[%emt 0:00:55]} d4 {[%emt 0:00:30]} 40. Kf6 {[%emt 0:00:00]} Re3 {[%emt 0:00:00]} 41. Rf1 {[%emt 0:01:09]} Rxb3 {[%emt 0:01:10]} 42. Kxf7 {[%emt 0:01:25]} Kd7 {[%emt 0:00:01]} 43. Kxg6 {[%emt 0:15:47]} Rh3 {[%emt 0:02:44]} 44. f5 {[%emt 0:02:00]} exf5 {[%emt 0:00:49]} 45. Kf7 {[%emt 0:05:54]} Rh7+ {[%emt 0:02:41]} 46. Kf6 {[%emt 0:00:05]} Rxh2 {[%emt 0:02:32]} 47. e6+ {[%emt 0:01:42]} Kd6 {[%emt 0:01:42]} 48. e7 {[%emt 0:00:52]} Re2 {[%emt 0:00:22]} 49. Rd1 {[%emt 0:00:04]} c5 {[%emt 0:00:22]} 50. Rb1 {[%emt 0:05:06]} Re6+ {[%emt 0:00:06]} 0-1